[Event "*** Titled Tuesday Blitz"]
[Site "Chess.com"]
[Date "2020.05.12"]
[Round "8"]
[White "vanea_03"]
[Black "jerry_77"]
[Result "1-0"]
[WhiteElo "2625"]
[BlackElo "2455"]
[TimeControl "180+1"]
[EndTime "11:35:20 PDT"]
[Termination "vanea_03 won by checkmate"]

1. d4 {[%clk 0:03:00.9]} 1... Nf6 {[%clk 0:02:41.5]} 2. c4 {[%clk 0:03:00.8]}
2... e6 {[%clk 0:02:39.5]} 3. g3 {[%clk 0:03:00.5]} 3... d5 {[%clk 0:02:39.5]}
4. Bg2 {[%clk 0:03:00.9]} 4... Be7 {[%clk 0:02:40.1]} 5. Nf3 {[%clk 0:03:00.4]}
5... O-O {[%clk 0:02:40.7]} 6. O-O {[%clk 0:03:00.2]} 6... dxc4 {[%clk
0:02:41.3]} 7. Ne5 {[%clk 0:02:59.7]} 7... Nc6 {[%clk 0:02:35.9]} 8. Bxc6 {[%clk
0:03:00]} 8... bxc6 {[%clk 0:02:36.8]} 9. Nxc6 {[%clk 0:03:00.9]} 9... Qe8
{[%clk 0:02:35.4]} 10. Nxe7+ {[%clk 0:03:01.1]} 10... Qxe7 {[%clk 0:02:36.3]}
11. Na3 {[%clk 0:02:51.7]} 11... Rd8 {[%clk 0:02:20.1]} 12. Qc2 {[%clk
0:02:49.3]} 12... e5 {[%clk 0:02:16.7]} 13. dxe5 {[%clk 0:02:46.6]} 13... Qxe5
{[%clk 0:02:17.6]} 14. Nxc4 {[%clk 0:02:46.1]} 14... Qh5 {[%clk 0:02:17]} 15. f3
{[%clk 0:02:45.6]} 15... Ba6 {[%clk 0:02:12.6]} 16. Be3 {[%clk 0:02:28.6]} 16...
Re8 {[%clk 0:01:51.5]} 17. Bf2 {[%clk 0:02:25]} 17... Qd5 {[%clk 0:01:49.8]} 18.
b3 {[%clk 0:02:23.5]} 18... h6 {[%clk 0:01:31.6]} 19. Rad1 {[%clk 0:02:15.8]}
19... Qe6 {[%clk 0:01:22]} 20. e4 {[%clk 0:02:11]} 20... g5 {[%clk 0:01:17.2]}
21. Bd4 {[%clk 0:02:02.5]} 21... Nd7 {[%clk 0:01:08.2]} 22. Bb2 {[%clk
0:01:56.7]} 22... Bxc4 {[%clk 0:00:54.5]} 23. bxc4 {[%clk 0:01:55.3]} 23... Ne5
{[%clk 0:00:54.5]} 24. Rd5 {[%clk 0:01:48.3]} 24... f6 {[%clk 0:00:46.1]} 25. f4
{[%clk 0:01:30]} 25... gxf4 {[%clk 0:00:43.5]} 26. Rxf4 {[%clk 0:01:30.6]} 26...
c6 {[%clk 0:00:40.7]} 27. Rd1 {[%clk 0:01:13]} 27... Rad8 {[%clk 0:00:27.8]} 28.
Bxe5 {[%clk 0:01:06.8]} 28... fxe5 {[%clk 0:00:26.4]} 29. Rff1 {[%clk
0:01:03.4]} 29... Rd4 {[%clk 0:00:23.1]} 30. Rxd4 {[%clk 0:00:55]} 30... exd4
{[%clk 0:00:24]} 31. e5 {[%clk 0:00:55.6]} 31... Rf8 {[%clk 0:00:16.2]} 32. Rf4
{[%clk 0:00:26.5]} 32... Rxf4 {[%clk 0:00:15.7]} 33. gxf4 {[%clk 0:00:27.4]}
33... Qg4+ {[%clk 0:00:15.9]} 34. Qg2 {[%clk 0:00:27.3]} 34... Qxg2+ {[%clk
0:00:16.1]} 35. Kxg2 {[%clk 0:00:28.2]} 35... Kf7 {[%clk 0:00:16.7]} 36. c5
{[%clk 0:00:27.3]} 36... Ke6 {[%clk 0:00:16.7]} 37. Kf3 {[%clk 0:00:26.8]} 37...
Kd5 {[%clk 0:00:17.3]} 38. h4 {[%clk 0:00:12.8]} 38... Kxc5 {[%clk 0:00:17.4]}
39. Ke4 {[%clk 0:00:12.5]} 39... Kc4 {[%clk 0:00:17.1]} 40. e6 {[%clk
0:00:13.1]} 40... d3 {[%clk 0:00:17.6]} 41. Ke3 {[%clk 0:00:09.6]} 41... Kc3
{[%clk 0:00:17.3]} 42. e7 {[%clk 0:00:10.1]} 42... d2 {[%clk 0:00:17.6]} 43.
e8=Q {[%clk 0:00:10.7]} 43... d1=Q {[%clk 0:00:17.8]} 44. Qxc6+ {[%clk
0:00:11.3]} 44... Kb2 {[%clk 0:00:17.8]} 45. Qb7+ {[%clk 0:00:08]} 45... Ka1
{[%clk 0:00:17.2]} 46. f5 {[%clk 0:00:06.1]} 46... Qe1+ {[%clk 0:00:16.9]} 47.
Kf4 {[%clk 0:00:06.2]} 47... Qxh4+ {[%clk 0:00:16.8]} 48. Ke5 {[%clk 0:00:06.8]}
48... Qg3+ {[%clk 0:00:16.6]} 49. Kf6 {[%clk 0:00:06.7]} 49... Qg5+ {[%clk
0:00:16.7]} 50. Ke6 {[%clk 0:00:06.2]} 50... Qe3+ {[%clk 0:00:17]} 51. Kf7
{[%clk 0:00:06.5]} 51... h5 {[%clk 0:00:16.4]} 52. Qh1+ {[%clk 0:00:04.5]} 52...
Kxa2 {[%clk 0:00:16]} 53. Qxh5 {[%clk 0:00:02.7]} 53... Qb3+ {[%clk 0:00:15.9]}
54. Kg7 {[%clk 0:00:03.3]} 54... Qc3+ {[%clk 0:00:14.6]} 55. f6 {[%clk
0:00:03.5]} 55... Qa5 {[%clk 0:00:13.6]} 56. Qf7+ {[%clk 0:00:03.7]} 56... Kb2
{[%clk 0:00:12.2]} 57. Qe7 {[%clk 0:00:04]} 57... Qg5+ {[%clk 0:00:12.3]} 58.
Kf8 {[%clk 0:00:04.6]} 58... a5 {[%clk 0:00:12.7]} 59. f7 {[%clk 0:00:04.3]}
59... Qh6+ {[%clk 0:00:13.1]} 60. Ke8 {[%clk 0:00:04.9]} 60... Qc6+ {[%clk
0:00:13.6]} 61. Qd7 {[%clk 0:00:05.4]} 61... Qe4+ {[%clk 0:00:13.9]} 62. Qe7
{[%clk 0:00:05.5]} 62... Qa8+ {[%clk 0:00:13.9]} 63. Kd7 {[%clk 0:00:05.5]}
63... Qb7+ {[%clk 0:00:14.4]} 64. Ke6 {[%clk 0:00:06]} 64... Qe4+ {[%clk
0:00:14.7]} 65. Kf6 {[%clk 0:00:05.8]} 65... Qh4+ {[%clk 0:00:15.2]} 66. Ke6
{[%clk 0:00:06.3]} 66... Qe4+ {[%clk 0:00:15.5]} 67. Kd7 {[%clk 0:00:06.9]}
67... Qb7+ {[%clk 0:00:15.7]} 68. Ke8 {[%clk 0:00:07.2]} 68... Qc8+ {[%clk
0:00:15.8]} 69. Qd8 {[%clk 0:00:07.7]} 69... Qe6+ {[%clk 0:00:16.2]} 70. Kf8
{[%clk 0:00:08.2]} 70... a4 {[%clk 0:00:16.3]} 71. Qd4+ {[%clk 0:00:07.3]} 71...
Kb3 {[%clk 0:00:16.2]} 72. Qd3+ {[%clk 0:00:07.3]} 72... Kb2 {[%clk 0:00:16.3]}
73. Qd4+ {[%clk 0:00:07.2]} 73... Kb3 {[%clk 0:00:16.6]} 74. Kg7 {[%clk
0:00:07.9]} 74... Qe7 {[%clk 0:00:16.4]} 75. Qd5+ {[%clk 0:00:07.1]} 75... Kb2
{[%clk 0:00:15.8]} 76. Qg2+ {[%clk 0:00:07.1]} 76... Kb3 {[%clk 0:00:15.9]} 77.
Qh3+ {[%clk 0:00:07.5]} 77... Kb2 {[%clk 0:00:16]} 78. Qg2+ {[%clk 0:00:06.4]}
78... Kb3 {[%clk 0:00:16.3]} 79. Qd5+ {[%clk 0:00:06.8]} 79... Kb2 {[%clk
0:00:16.3]} 80. Kg6 {[%clk 0:00:07.4]} 80... Qf8 {[%clk 0:00:15.8]} 81. Qe5+
{[%clk 0:00:06.4]} 81... Kb3 {[%clk 0:00:16]} 82. Qe6+ {[%clk 0:00:05.4]} 82...
Kb2 {[%clk 0:00:15.2]} 83. Qf6+ {[%clk 0:00:05.9]} 83... Kb3 {[%clk 0:00:15.1]}
84. Qg7 {[%clk 0:00:03.2]} 84... Qd6+ {[%clk 0:00:15.3]} 85. Kh7 {[%clk
0:00:03.5]} 85... Qh2+ {[%clk 0:00:15.4]} 86. Kg8 {[%clk 0:00:03.8]} 86... a3
{[%clk 0:00:14.8]} 87. f8=Q {[%clk 0:00:03.9]} 87... a2 {[%clk 0:00:15.3]} 88.
Qgf7+ {[%clk 0:00:04]} 88... Kb2 {[%clk 0:00:15.4]} 89. Qf6+ {[%clk 0:00:02.8]}
89... Kb1 {[%clk 0:00:15]} 90. Qf5+ {[%clk 0:00:03]} 90... Kb2 {[%clk
0:00:15.2]} 91. Qb4+ {[%clk 0:00:03.3]} 91... Kc1 {[%clk 0:00:13.8]} 92. Qf1+
{[%clk 0:00:02.8]} 92... Kc2 {[%clk 0:00:14.1]} 93. Qbc4+ {[%clk 0:00:03.1]}
93... Kd2 {[%clk 0:00:13.9]} 94. Qfc1# {[%clk 0:00:03.5]} 1-0

[Event "*** Titled Tuesday Blitz"]
[Site "Chess.com"]
[Date "2020.05.12"]
[Round "9"]
[White "MusicCityMaster"]
[Black "Srisshhhtea"]
[Result "1-0"]
[WhiteElo "2323"]
[BlackElo "2130"]
[TimeControl "180+1"]
[EndTime "11:37:09 PDT"]
[Termination "MusicCityMaster won by resignation"]

1. e4 {[%clk 0:03:00.9]} 1... e6 {[%clk 0:02:59.6]} 2. d4 {[%clk 0:03:00.3]}
2... d5 {[%clk 0:03:00]} 3. Nc3 {[%clk 0:03:01]} 3... Nf6 {[%clk 0:02:59.6]} 4.
e5 {[%clk 0:03:00.8]} 4... Nfd7 {[%clk 0:02:58.8]} 5. Nce2 {[%clk 0:03:01.5]}
5... c5 {[%clk 0:02:58.1]} 6. c3 {[%clk 0:03:02.2]} 6... Nc6 {[%clk 0:02:58.9]}
7. Nf3 {[%clk 0:03:02.6]} 7... Be7 {[%clk 0:02:59.4]} 8. Nf4 {[%clk 0:03:01.2]}
8... O-O {[%clk 0:02:59.4]} 9. h4 {[%clk 0:03:00.8]} 9... Nb6 {[%clk 0:02:42.2]}
10. Bd3 {[%clk 0:03:00]} 10... c4 {[%clk 0:02:41.4]} 11. Bxh7+ {[%clk
0:02:57.4]} 11... Kxh7 {[%clk 0:02:40.1]} 12. Ng5+ {[%clk 0:02:58]} 12... Bxg5
{[%clk 0:02:38.6]} 13. hxg5+ {[%clk 0:02:57.5]} 13... Kg8 {[%clk 0:02:38.8]} 14.
Qh5 {[%clk 0:02:57.8]} 14... f5 {[%clk 0:02:38.1]} 15. g6 {[%clk 0:02:54.7]} 1-0

[Event "*** Titled Tuesday Blitz"]
[Site "Chess.com"]
[Date "2020.05.12"]
[Round "9"]
[White "ENEASZ"]
[Black "Harut-1998"]
[Result "1-0"]
[WhiteElo "2534"]
[BlackElo "2751"]
[TimeControl "180+1"]
[EndTime "11:37:45 PDT"]
[Termination "ENEASZ won by resignation"]

1. e4 {[%clk 0:03:00.9]} 1... e6 {[%clk 0:02:58.8]} 2. d4 {[%clk 0:03:00.8]}
2... d5 {[%clk 0:02:59.7]} 3. Bd3 {[%clk 0:03:01.3]} 3... Nc6 {[%clk 0:02:41.6]}
4. c3 {[%clk 0:02:59.9]} 4... Nf6 {[%clk 0:02:41.1]} 5. e5 {[%clk 0:02:59.6]}
5... Nd7 {[%clk 0:02:41.3]} 6. f4 {[%clk 0:02:59.8]} 6... Ne7 {[%clk 0:02:38.8]}
7. Nf3 {[%clk 0:02:59.6]} 7... c5 {[%clk 0:02:38.1]} 8. O-O {[%clk 0:02:59.6]}
8... Qb6 {[%clk 0:02:36.8]} 9. Kh1 {[%clk 0:02:58.1]} 9... g6 {[%clk 0:02:35.9]}
10. Qe2 {[%clk 0:02:45.5]} 10... h5 {[%clk 0:02:32.5]} 11. dxc5 {[%clk
0:02:32.4]} 11... Nxc5 {[%clk 0:02:31.5]} 12. Be3 {[%clk 0:02:32.6]} 12... Qc7
{[%clk 0:02:25.1]} 1-0

[Event "*** Titled Tuesday Blitz"]
[Site "Chess.com"]
[Date "2020.05.12"]
[Round "9"]
[White "Boudicca64"]
[Black "northridgehawk"]
[Result "0-1"]
[WhiteElo "2028"]
[BlackElo "2252"]
[TimeControl "180+1"]
[EndTime "11:37:48 PDT"]
[Termination "northridgehawk won by resignation"]

1. d4 {[%clk 0:03:00.9]} 1... Nf6 {[%clk 0:02:59.9]} 2. c4 {[%clk 0:02:59.2]}
2... g6 {[%clk 0:03:00.3]} 3. Nc3 {[%clk 0:02:58.5]} 3... d5 {[%clk 0:03:00.8]}
4. Bf4 {[%clk 0:02:58]} 4... Bg7 {[%clk 0:03:00.9]} 5. e3 {[%clk 0:02:56.7]}
5... O-O {[%clk 0:03:01.1]} 6. Rc1 {[%clk 0:02:54.5]} 6... Be6 {[%clk 0:03:00]}
7. b3 {[%clk 0:02:47.1]} 7... c5 {[%clk 0:02:55.7]} 8. dxc5 {[%clk 0:02:45.4]}
8... Qa5 {[%clk 0:02:55.8]} 9. Be5 {[%clk 0:02:32.9]} 9... Nc6 {[%clk
0:02:54.4]} 10. cxd5 {[%clk 0:02:26.1]} 10... Bxd5 {[%clk 0:02:46.6]} 11. Bd4
{[%clk 0:02:18.9]} 11... e5 {[%clk 0:02:45.8]} 12. Qd2 {[%clk 0:02:16]} 12...
exd4 {[%clk 0:02:46.4]} 13. Nxd5 {[%clk 0:02:16]} 13... Qxd2+ {[%clk 0:02:43.9]}
0-1

[Event "*** Titled Tuesday Blitz"]
[Site "Chess.com"]
[Date "2020.05.12"]
[Round "9"]
[White "Kotofeyca"]
[Black "Stronger1799"]
[Result "1-0"]
[WhiteElo "2433"]
[BlackElo "2297"]
[TimeControl "180+1"]
[EndTime "11:37:52 PDT"]
[Termination "Kotofeyca won by resignation"]

1. d4 {[%clk 0:03:00.9]} 1... Nf6 {[%clk 0:02:43.8]} 2. c4 {[%clk 0:03:00.2]}
2... g6 {[%clk 0:02:44.1]} 3. f3 {[%clk 0:03:00.3]} 3... d5 {[%clk 0:02:44.2]}
4. cxd5 {[%clk 0:03:00]} 4... Nxd5 {[%clk 0:02:45.1]} 5. e4 {[%clk 0:03:00.6]}
5... Nb6 {[%clk 0:02:45.3]} 6. Nc3 {[%clk 0:03:01.1]} 6... Bg7 {[%clk
0:02:45.6]} 7. Be3 {[%clk 0:03:01.7]} 7... O-O {[%clk 0:02:45.7]} 8. Qd2 {[%clk
0:03:02.3]} 8... Nc6 {[%clk 0:02:44.2]} 9. O-O-O {[%clk 0:03:02.8]} 9... e5
{[%clk 0:02:44.3]} 10. d5 {[%clk 0:03:03.3]} 10... Nd4 {[%clk 0:02:44.6]} 11.
Nb5 {[%clk 0:03:03.8]} 11... c5 {[%clk 0:02:39.4]} 12. dxc6 {[%clk 0:03:02.9]}
12... Nxc6 {[%clk 0:02:38.5]} 13. Qxd8 {[%clk 0:03:02.9]} 13... Rxd8 {[%clk
0:02:38.3]} 14. Rxd8+ {[%clk 0:03:02.8]} 14... Nxd8 {[%clk 0:02:38.4]} 15. Nxa7
{[%clk 0:03:03.3]} 15... Rxa7 {[%clk 0:02:00.8]} 16. Bxb6 {[%clk 0:03:02.5]}
16... Rxa2 {[%clk 0:02:01.4]} 17. Kb1 {[%clk 0:03:02.6]} 17... Ra6 {[%clk
0:02:02]} 18. Bxa6 {[%clk 0:02:57.2]} 1-0

[Event "*** Titled Tuesday Blitz"]
[Site "Chess.com"]
[Date "2020.05.12"]
[Round "9"]
[White "francyIM"]
[Black "IriBu"]
[Result "1-0"]
[WhiteElo "2669"]
[BlackElo "2541"]
[TimeControl "180+1"]
[EndTime "11:38:16 PDT"]
[Termination "francyIM won by resignation"]

1. c4 {[%clk 0:03:00.9]} 1... e5 {[%clk 0:02:58.5]} 2. Nc3 {[%clk 0:02:59.3]}
2... Bb4 {[%clk 0:02:58.1]} 3. Qc2 {[%clk 0:02:57.8]} 3... Nf6 {[%clk
0:02:56.4]} 4. Nf3 {[%clk 0:02:56]} 4... Nc6 {[%clk 0:02:54.2]} 5. e3 {[%clk
0:02:53.2]} 5... O-O {[%clk 0:02:53]} 6. Nd5 {[%clk 0:02:51.5]} 6... a5 {[%clk
0:02:45.6]} 7. Qf5 {[%clk 0:02:42.4]} 7... Nxd5 {[%clk 0:02:36.9]} 8. cxd5
{[%clk 0:02:40.3]} 8... d6 {[%clk 0:02:37.3]} 9. Qh5 {[%clk 0:02:37.9]} 9... Ne7
{[%clk 0:02:32.7]} 10. a3 {[%clk 0:02:27.5]} 10... Bc5 {[%clk 0:02:31.5]} 11. d4
{[%clk 0:02:26.8]} 11... exd4 {[%clk 0:02:28.1]} 12. exd4 {[%clk 0:02:27.7]}
12... Bb6 {[%clk 0:02:25.9]} 13. Bd3 {[%clk 0:02:27]} 13... g6 {[%clk
0:02:21.8]} 14. Qh6 {[%clk 0:02:24.9]} 14... Bf5 {[%clk 0:02:17.3]} 15. Ng5
{[%clk 0:02:21.5]} 1-0

[Event "*** Titled Tuesday Blitz"]
[Site "Chess.com"]
[Date "2020.05.12"]
[Round "9"]
[White "Raja3401"]
[Black "Niclox"]
[Result "1-0"]
[WhiteElo "2787"]
[BlackElo "2613"]
[TimeControl "180+1"]
[EndTime "11:38:30 PDT"]
[Termination "Raja3401 won by resignation"]

1. e4 {[%clk 0:03:00.9]} 1... c5 {[%clk 0:02:59.8]} 2. Nf3 {[%clk 0:02:54.5]}
2... d6 {[%clk 0:02:59.6]} 3. d4 {[%clk 0:02:53.8]} 3... cxd4 {[%clk 0:03:00.5]}
4. Nxd4 {[%clk 0:02:54.3]} 4... Nf6 {[%clk 0:03:00.8]} 5. Nc3 {[%clk 0:02:51.3]}
5... g6 {[%clk 0:03:01.1]} 6. f4 {[%clk 0:02:50.4]} 6... Nc6 {[%clk 0:02:59.2]}
7. Bb5 {[%clk 0:02:50.5]} 7... Bd7 {[%clk 0:02:57.9]} 8. Bxc6 {[%clk 0:02:50.8]}
8... Bxc6 {[%clk 0:02:56.4]} 9. e5 {[%clk 0:02:50.2]} 9... dxe5 {[%clk
0:02:53.5]} 10. fxe5 {[%clk 0:02:51.1]} 10... Nd5 {[%clk 0:02:54]} 11. e6 {[%clk
0:02:45.1]} 11... f5 {[%clk 0:02:52.6]} 12. O-O {[%clk 0:02:38.4]} 12... Bg7
{[%clk 0:02:51.8]} 13. Nxf5 {[%clk 0:02:26.4]} 13... Bxc3 {[%clk 0:02:40.1]} 14.
bxc3 {[%clk 0:02:26.2]} 14... Qb6+ {[%clk 0:02:40.5]} 15. Be3 {[%clk 0:02:15.6]}
1-0

[Event "*** Titled Tuesday Blitz"]
[Site "Chess.com"]
[Date "2020.05.12"]
[Round "9"]
[White "Konavets"]
[Black "Baby_Legs"]
[Result "1-0"]
[WhiteElo "2938"]
[BlackElo "2731"]
[TimeControl "180+1"]
[EndTime "11:38:34 PDT"]
[Termination "Konavets won by resignation"]

1. e4 {[%clk 0:03:00.8]} 1... c6 {[%clk 0:02:59.8]} 2. d4 {[%clk 0:03:00.5]}
2... d5 {[%clk 0:02:59.7]} 3. exd5 {[%clk 0:03:01.1]} 3... cxd5 {[%clk
0:02:59.3]} 4. c4 {[%clk 0:03:02]} 4... Nf6 {[%clk 0:02:58.1]} 5. Nc3 {[%clk
0:03:02.9]} 5... g6 {[%clk 0:02:57.8]} 6. Qb3 {[%clk 0:03:02.5]} 6... Bg7 {[%clk
0:02:54]} 7. cxd5 {[%clk 0:03:02.8]} 7... O-O {[%clk 0:02:54.2]} 8. Nge2 {[%clk
0:03:03.7]} 8... a6 {[%clk 0:02:46.6]} 9. Nf4 {[%clk 0:03:02.4]} 9... b5 {[%clk
0:02:46.6]} 10. a4 {[%clk 0:03:01.7]} 10... bxa4 {[%clk 0:02:43.9]} 11. Rxa4
{[%clk 0:03:02.6]} 11... Nbd7 {[%clk 0:02:42.5]} 12. Be2 {[%clk 0:02:59.8]}
12... Rb8 {[%clk 0:02:31.7]} 13. Qa2 {[%clk 0:02:58]} 13... Nb6 {[%clk
0:02:27.6]} 14. Ra5 {[%clk 0:02:57.3]} 14... Ne8 {[%clk 0:02:13.2]} 15. Be3
{[%clk 0:02:46.8]} 15... Nd6 {[%clk 0:02:13]} 16. O-O {[%clk 0:02:45.5]} 16...
Nf5 {[%clk 0:02:12.4]} 17. Rd1 {[%clk 0:02:45.6]} 17... Qd6 {[%clk 0:02:03.2]}
18. Ne4 {[%clk 0:02:41.8]} 18... Qb4 {[%clk 0:01:59.1]} 19. Nd3 {[%clk
0:02:35.4]} 19... Qxa5 {[%clk 0:01:49.1]} 20. Qxa5 {[%clk 0:02:34.1]} 20... Nc4
{[%clk 0:01:49.6]} 21. Qc7 {[%clk 0:02:32.9]} 21... Rb7 {[%clk 0:01:49.4]} 22.
Qxc4 {[%clk 0:02:32.4]} 1-0

[Event "*** Titled Tuesday Blitz"]
[Site "Chess.com"]
[Date "2020.05.12"]
[Round "9"]
[White "mamonika"]
[Black "Witaliss"]
[Result "0-1"]
[WhiteElo "2011"]
[BlackElo "2427"]
[TimeControl "180+1"]
[EndTime "11:38:34 PDT"]
[Termination "Witaliss won by resignation"]

1. b4 {[%clk 0:03:00.9]} 1... c6 {[%clk 0:03:00.9]} 2. e3 {[%clk 0:03:00.4]}
2... d5 {[%clk 0:03:00.6]} 3. Nf3 {[%clk 0:02:59.1]} 3... Nf6 {[%clk 0:03:00.2]}
4. c4 {[%clk 0:02:59.1]} 4... Bg4 {[%clk 0:02:59.1]} 5. Nc3 {[%clk 0:02:55.2]}
5... e6 {[%clk 0:02:58.2]} 6. Be2 {[%clk 0:02:53.8]} 6... Bxb4 {[%clk
0:02:56.5]} 7. O-O {[%clk 0:02:50.1]} 7... Bxc3 {[%clk 0:02:55]} 8. dxc3 {[%clk
0:02:49.9]} 8... Nbd7 {[%clk 0:02:53.9]} 9. cxd5 {[%clk 0:02:48]} 9... exd5
{[%clk 0:02:52.8]} 10. c4 {[%clk 0:02:46.5]} 10... dxc4 {[%clk 0:02:50.9]} 11.
Bb2 {[%clk 0:02:38.3]} 11... O-O {[%clk 0:02:46.4]} 12. Bxc4 {[%clk 0:02:37.2]}
12... Nb6 {[%clk 0:02:45.2]} 13. Bb3 {[%clk 0:02:33.8]} 13... Qxd1 {[%clk
0:02:43.5]} 14. Rfxd1 {[%clk 0:02:33.6]} 14... Rfd8 {[%clk 0:02:41.2]} 15. Kf1
{[%clk 0:02:22]} 15... Be6 {[%clk 0:02:37.2]} 16. Bxe6 {[%clk 0:02:15.7]} 16...
fxe6 {[%clk 0:02:36.3]} 17. Ng5 {[%clk 0:02:15.7]} 17... Rxd1+ {[%clk
0:02:28.6]} 18. Rxd1 {[%clk 0:02:16.6]} 18... Re8 {[%clk 0:02:28.1]} 19. Rd6
{[%clk 0:01:59]} 19... Nc4 {[%clk 0:02:26.4]} 0-1

[Event "*** Titled Tuesday Blitz"]
[Site "Chess.com"]
[Date "2020.05.12"]
[Round "9"]
[White "Savva09022009"]
[Black "Gentlejimmy7"]
[Result "1-0"]
[WhiteElo "2407"]
[BlackElo "2541"]
[TimeControl "180+1"]
[EndTime "11:38:53 PDT"]
[Termination "Savva09022009 won by resignation"]

1. d4 {[%clk 0:03:00.9]} 1... Nf6 {[%clk 0:02:58.7]} 2. Nc3 {[%clk 0:02:58.7]}
2... d5 {[%clk 0:02:57.6]} 3. Bf4 {[%clk 0:02:58.7]} 3... a6 {[%clk 0:02:52.3]}
4. e3 {[%clk 0:02:56.8]} 4... c5 {[%clk 0:02:52.2]} 5. Nf3 {[%clk 0:02:54.1]}
5... cxd4 {[%clk 0:02:51.4]} 6. exd4 {[%clk 0:02:49.1]} 6... Bg4 {[%clk
0:02:52.3]} 7. h3 {[%clk 0:02:42.9]} 7... Bxf3 {[%clk 0:02:52.3]} 8. Qxf3 {[%clk
0:02:42.4]} 8... e6 {[%clk 0:02:51.6]} 9. Be3 {[%clk 0:02:40.3]} 9... Nc6 {[%clk
0:02:44.2]} 10. Bd3 {[%clk 0:02:39.6]} 10... Be7 {[%clk 0:02:44.1]} 11. O-O
{[%clk 0:02:37.9]} 11... b5 {[%clk 0:02:40.9]} 12. Ne2 {[%clk 0:02:32.2]} 12...
O-O {[%clk 0:02:38.3]} 13. Nf4 {[%clk 0:02:31.5]} 13... Qb6 {[%clk 0:02:35.6]}
14. c3 {[%clk 0:02:30.4]} 14... b4 {[%clk 0:02:32.7]} 15. Nh5 {[%clk 0:02:30.5]}
15... bxc3 {[%clk 0:02:25.6]} 16. bxc3 {[%clk 0:02:29.2]} 16... Na5 {[%clk
0:02:20.1]} 17. Nxf6+ {[%clk 0:02:27.6]} 17... Bxf6 {[%clk 0:02:20.1]} 18. h4
{[%clk 0:02:19.9]} 18... Rac8 {[%clk 0:02:08.4]} 19. Rac1 {[%clk 0:02:13.4]}
19... Nc4 {[%clk 0:02:08.2]} 20. h5 {[%clk 0:02:10.4]} 20... Qa5 {[%clk
0:02:03.9]} 21. h6 {[%clk 0:02:08]} 21... g6 {[%clk 0:02:03.4]} 22. Qxf6 {[%clk
0:02:06.3]} 1-0

[Event "*** Titled Tuesday Blitz"]
[Site "Chess.com"]
[Date "2020.05.12"]
[Round "9"]
[White "temus_galaktionov"]
[Black "TengisChess"]
[Result "0-1"]
[WhiteElo "2711"]
[BlackElo "2512"]
[TimeControl "180+1"]
[EndTime "11:39:00 PDT"]
[Termination "TengisChess won by resignation"]

1. d4 {[%clk 0:03:00.9]} 1... Nf6 {[%clk 0:02:59.1]} 2. Nf3 {[%clk 0:03:00.7]}
2... g6 {[%clk 0:02:59.4]} 3. c4 {[%clk 0:03:00.7]} 3... Bg7 {[%clk 0:02:59.6]}
4. Nc3 {[%clk 0:03:01]} 4... O-O {[%clk 0:03:00.5]} 5. e4 {[%clk 0:02:59.9]}
5... c5 {[%clk 0:03:00.2]} 6. d5 {[%clk 0:02:59.6]} 6... d6 {[%clk 0:03:00.6]}
7. h3 {[%clk 0:02:58.9]} 7... Na6 {[%clk 0:03:00.6]} 8. Bd3 {[%clk 0:02:57.5]}
8... Nc7 {[%clk 0:03:01.5]} 9. O-O {[%clk 0:02:55.2]} 9... a6 {[%clk 0:03:02.4]}
10. a4 {[%clk 0:02:53]} 10... Rb8 {[%clk 0:03:02.8]} 11. Bf4 {[%clk 0:02:51.7]}
11... Nd7 {[%clk 0:03:02.5]} 12. Re1 {[%clk 0:02:50.1]} 12... f6 {[%clk
0:03:02.2]} 13. Bg3 {[%clk 0:02:38.5]} 13... Ne5 {[%clk 0:03:02.2]} 14. Nxe5
{[%clk 0:02:36.5]} 14... fxe5 {[%clk 0:03:03.1]} 15. a5 {[%clk 0:02:37.4]} 15...
b5 {[%clk 0:03:02.4]} 16. axb6 {[%clk 0:02:37.4]} 16... Rxb6 {[%clk 0:03:02.6]}
17. Ra2 {[%clk 0:02:34.3]} 17... Bd7 {[%clk 0:03:02.5]} 18. Bc2 {[%clk
0:02:33.3]} 18... Bh6 {[%clk 0:03:02.3]} 19. b3 {[%clk 0:02:30.1]} 19... Qe8
{[%clk 0:02:55.7]} 20. Ne2 {[%clk 0:02:26.2]} 20... Qf7 {[%clk 0:02:55.3]} 21.
Rf1 {[%clk 0:02:23.9]} 21... Qg7 {[%clk 0:02:55.4]} 22. f4 {[%clk 0:02:20.7]}
22... exf4 {[%clk 0:02:55.5]} 23. Bxf4 {[%clk 0:02:17.9]} 23... Rbb8 {[%clk
0:02:54.4]} 24. Qd2 {[%clk 0:02:10.5]} 24... Bxf4 {[%clk 0:02:54.3]} 25. Nxf4
{[%clk 0:02:11.4]} 25... Qe5 {[%clk 0:02:53.9]} 26. Raa1 {[%clk 0:02:06.7]}
26... Rf7 {[%clk 0:02:36]} 27. Ne2 {[%clk 0:02:00.1]} 27... Rbf8 {[%clk
0:02:33.3]} 28. Rxf7 {[%clk 0:01:57.7]} 28... Qxa1+ {[%clk 0:02:31]} 0-1

[Event "*** Titled Tuesday Blitz"]
[Site "Chess.com"]
[Date "2020.05.12"]
[Round "9"]
[White "2165149677570"]
[Black "j2806"]
[Result "1-0"]
[WhiteElo "2232"]
[BlackElo "1971"]
[TimeControl "180+1"]
[EndTime "11:39:08 PDT"]
[Termination "2165149677570 won by resignation"]

1. a3 {[%clk 0:02:58.4]} 1... Nf6 {[%clk 0:02:59.1]} 2. c4 {[%clk 0:02:56.4]}
2... e6 {[%clk 0:02:58.8]} 3. g3 {[%clk 0:02:48.2]} 3... d5 {[%clk 0:02:59.1]}
4. Bg2 {[%clk 0:02:48.3]} 4... c5 {[%clk 0:02:59.1]} 5. cxd5 {[%clk 0:02:47.9]}
5... exd5 {[%clk 0:02:58.4]} 6. Nf3 {[%clk 0:02:48.6]} 6... Nc6 {[%clk
0:02:57.9]} 7. d4 {[%clk 0:02:48.8]} 7... Be6 {[%clk 0:02:56]} 8. O-O {[%clk
0:02:48.8]} 8... cxd4 {[%clk 0:02:52]} 9. Nxd4 {[%clk 0:02:47.1]} 9... Nxd4
{[%clk 0:02:51.4]} 10. Qxd4 {[%clk 0:02:48]} 10... Be7 {[%clk 0:02:47.9]} 11.
Nc3 {[%clk 0:02:47.9]} 11... O-O {[%clk 0:02:41.3]} 12. Rd1 {[%clk 0:02:47.7]}
12... Qc7 {[%clk 0:02:20.2]} 13. Bf4 {[%clk 0:02:46.9]} 13... Qc6 {[%clk
0:02:18.5]} 14. Rac1 {[%clk 0:02:35.5]} 14... Bc5 {[%clk 0:02:15.9]} 15. Qd3
{[%clk 0:02:31.6]} 15... Rac8 {[%clk 0:01:52.5]} 16. b4 {[%clk 0:02:28.9]} 16...
Be7 {[%clk 0:01:31.3]} 17. Nxd5 {[%clk 0:02:28.9]} 17... Qe8 {[%clk 0:01:26.6]}
18. Rxc8 {[%clk 0:02:27.8]} 18... Bxc8 {[%clk 0:01:26.3]} 19. Nxe7+ {[%clk
0:02:26.9]} 19... Qxe7 {[%clk 0:01:26.3]} 20. Bd6 {[%clk 0:02:27.8]} 20... Qe8
{[%clk 0:01:18.8]} 21. Bxf8 {[%clk 0:02:27]} 21... Qxf8 {[%clk 0:01:18.8]} 22.
Qd8 {[%clk 0:02:27.9]} 22... Qxd8 {[%clk 0:01:18.5]} 23. Rxd8+ {[%clk
0:02:28.4]} 1-0